[Event "WR Chess Masters 2023"]
[Site "Duesseldorf"]
[Date "2023.02.21"]
[Round "5.1"]
[White "Aronian, Levon"]
[Black "Giri, Anish"]
[Result "1-0"]
[ECO "C67"]
[WhiteElo "2736"]
[BlackElo "2780"]
[Annotator "TA"]
[PlyCount "95"]
[EventDate "2023.02.16"]
[EventCountry "GER"]
[SourceTitle "playchess.com"]
[Source "ChessBase"]
[SourceQuality "1"]
[TimeControl "40/7200:20/3600:900+30"]

{[%evp 9,95,21,20,0,0,0,0,-5,5,6,3,3,9,13,14,3,6,8,4,3,18,0,0,0,0,0,0,0,0,0,25,5,20,6,56,14,62,60,87,85,75,77,75,75,91,65,79,79,88,77,72,73,75,81,100,100,106,112,82,90,83,90,129,125,115,90,383,369,583,565,565,552,513,495,495,362,469,347,313,287,280,279,417,270,4840,269,503,432]} 1. e4 {[%emt 0:00:00]} e5 {[%emt 0:00:08]} 2. Nf3 {[%emt 0:00:07]} Nc6 {[%emt 0:00:04]} 3. Bb5 {[%emt 0:00:05]} Nf6 {[%emt 0:00:06][%cal Bg8f6,Bf6e4,Be4d6][%mdl 32]} 4. O-O {[%emt 0:00:06]} Nxe4 {[%emt 0:00:03]} 5. Re1 {[%emt 0:00:04]} Nd6 {[%emt 0:00:06]} 6. a4 {[%emt 0:00:04] C67: Ruy Lopez: Berlin Defence: 4 0-0 Nxe4.} Be7 {[%emt 0:01:53]} 7. Nc3 {[%emt 0:00:05]} a6 {[%emt 0:00:13]} 8. Bf1 {[%emt 0:00:06] The position is equal.} e4 {[%emt 0:00:03][%mdl 64] [#] Deflection} 9. Nxe4 {[%emt 0:00:07]} Nxe4 {[%emt 0:00:03]} 10. Rxe4 {[%emt 0:00:06]} d5 {[%emt 0:00:03]} 11. Re1 {[%emt 0:00:07]} Bg4 {[%emt 0:00:15]} 12. h3 {[%emt 0:00:06]} Bh5 {[%emt 0:00:07]} 13. Be2 {[%emt 0:00:04]} O-O {[%emt 0:02:02]} 14. d4 {[%emt 0:00:16]} Re8 {[%emt 0:01:39] [#]} 15. Ne5 $5 $146 {[%emt 0:04:27][%mdl 8] New and interesting.} ({Predecessor:} 15. c3 Bd6 16. Bg5 Qd7 17. Qc2 h6 18. Be3 Bg6 19. Bd3 Be4 20. Nd2 Bxd3 21. Qxd3 {0-1 Blomqvist,E (2510)-Hakobyan,A (2620) Airthings Masters Play In rapid 2023 (8)}) 15... Bxe2 {[%emt 0:02:35]} 16. Rxe2 {[%emt 0:00:02]} Nxe5 {[%emt 0:14:01]} 17. dxe5 {[%emt 0:00:05]} Qd7 {[%emt 0:00:23]} 18. Qd3 {[%emt 0:07:05]} Rad8 {[%emt 0:07:47]} 19. b3 {[%emt 0:03:45]} Qe6 {[%emt 0:01:15]} 20. Bd2 {[%emt 0:08:19]} Qg6 {[%emt 0:01:17]} 21. f4 {[%emt 0:09:46]} f5 {[%emt 0:21:39]} (21... Qxd3 $11 22. cxd3 c5) 22. b4 {[%emt 0:25:11]} Qe6 {[%emt 0:02:33]} (22... Bxb4 $11 {is more appropriate.} 23. Bxb4 Qb6+ 24. Kh2 Qxb4) 23. c3 $14 {[%emt 0:05:52]} c5 {[%emt 0:06:37] [#]} 24. bxc5 $1 {[%emt 0:00:23]} Bxc5+ {[%emt 0:00:06]} 25. Be3 {[%emt 0:00:44]} Bxe3+ {[%emt 0:00:10]} 26. Qxe3 {[%emt 0:02:39]} Rc8 {[%emt 0:01:07]} 27. Rb1 {[%emt 0:00:38]} Qc6 {[%emt 0:01:21][%csl LRa4,LRc3]} 28. Qd4 {[%emt 0:04:48]} (28. Reb2 $5 {[%cal Rb2b7]}) 28... b5 {[%emt 0:09:14]} 29. axb5 {[%emt 0:00:40]} axb5 {[%emt 0:00:03]} 30. Kh2 {[%emt 0:03:20]} Red8 {[%emt 0:05:28]} 31. Re3 {[%emt 0:04:16]} Qc4 {[%emt 0:06:55]} 32. Rg3 {[%emt 0:02:02]} Qxd4 {[%emt 0:02:53]} 33. cxd4 $16 {[%emt 0:00:03][%mdl 4096] Endgame KRR-KRR} Rc4 {[%emt 0:00:12]} 34. Rxb5 {[%emt 0:00:06] Strongly threatening Rb7.} Rxd4 {[%emt 0:00:04]} 35. Rb7 {[%emt 0:00:04]} g6 {[%emt 0:00:15]} 36. Ra3 {[%emt 0:01:21] And now Raa7 would win. White is more active.} Rxf4 {[%emt 0:00:50]} 37. Raa7 {[%emt 0:00:03] Rg7+ is the strong threat.} Re4 $2 {[%emt 0:18:34][%mdl 8192] This costs Black the game.} (37... Rh4 $16) 38. Rg7+ $18 {[%emt 0:00:09]} Kf8 {[%emt 0:00:54]} (38... Kh8 {is a better defense.} 39. Rxh7+ Kg8) 39. Raf7+ {[%emt 0:01:49]} ({Not} 39. Rxh7 Kg8 40. Rhe7 Rh4 $18) 39... Ke8 {[%emt 0:00:04]} 40. Rxh7 {[%emt 0:00:00] White wants to mate with Rc7.} Rh4 {[%emt 0:00:00]} 41. Re7+ {[%emt 0:01:02]} Kf8 {[%emt 0:06:13]} 42. Rhf7+ {[%emt 0:12:43]} Kg8 {[%emt 0:00:01]} 43. Rg7+ {[%emt 0:04:22]} Kh8 {[%emt 0:03:55]} 44. Rxg6 {[%emt 0:00:20]} d4 {[%emt 0:03:29]} 45. Rd6 {[%emt 0:00:49][%cal Rd6d8]} Rc8 {[%emt 0:02:56]} (45... Rg8 {was called for.} 46. Rf7 Rc8) 46. Rf7 {[%emt 0:00:35]} Rf4 $2 {[%emt 0:01:14]} (46... Re4 47. Rxf5 Rc7) 47. e6 $2 {[%emt 0:00:39]} (47. Rh6+ Kg8 48. e6) 47... Kg8 $2 {[%emt 0:00:40]} (47... Re4 48. Re7 (48. Rxf5 Kg7 $18) 48... Rg8) 48. Rdd7 {[%emt 0:00:08] Weighted Error Value: White=0.22 (precise) /Black=0.34} 1-0

[Event "WR Chess Masters 2023"]
[Site "Duesseldorf"]
[Date "2023.02.21"]
[Round "5.2"]
[White "Nepomniachtchi, Ian"]
[Black "Gukesh D"]
[Result "1/2-1/2"]
[ECO "D26"]
[WhiteElo "2793"]
[BlackElo "2718"]
[Annotator "TA"]
[PlyCount "90"]
[EventDate "2023.02.16"]
[EventCountry "GER"]
[SourceTitle "playchess.com"]
[Source "ChessBase"]
[SourceQuality "1"]
[TimeControl "40/7200:20/3600:900+30"]

{[%evp 11,90,20,24,20,42,34,37,32,27,7,14,18,0,17,17,5,18,5,4,9,8,4,13,0,0,0,0,-29,-27,-21,-12,-23,-22,-64,-70,-94,-103,-95,-89,-110,-101,-100,-102,-98,-90,-104,-104,-111,-111,-112,-114,-135,-117,-125,-134,-195,-57,-57,-57,-57,-70,-68,-57,-57,0,0,0,0,0,0,0,0,0,0,0,0,0,0,0,0,0]} 1. d4 {[%emt 0:00:09]} d5 {[%emt 0:00:16]} 2. c4 {[%emt 0:00:07]} dxc4 {[%emt 0:00:15]} 3. Nf3 {[%emt 0:00:10]} Nf6 {[%emt 0:00:07]} 4. e3 {[%emt 0:00:06]} e6 {[%emt 0:00:33]} 5. Bxc4 {[%emt 0:00:08]} a6 {[%emt 0:00:05]} 6. O-O {[%emt 0:00:07]} Be7 {[%emt 0:00:11]} 7. Qe2 {[%emt 0:08:19] 7.b3 injects fresh life into this line. D26: Queen's Gambit Accepted: 4 e3 e6 5 Bxc5 c5 sidelines.} b5 {[%emt 0:00:55]} 8. Bd3 {[%emt 0:00:49]} Nbd7 {[%emt 0:00:19]} 9. a4 {[%emt 0:01:45] White is slightly better.} Bb7 {[%emt 0:01:03]} 10. Nbd2 {[%emt 0:17:31]} O-O {[%emt 0:04:08]} 11. b3 {[%emt 0:03:15] [#]} c5 $146 {[%emt 0:21:30]} ({Predecessor:} 11... c6 12. Bb2 Re8 13. Rfc1 Nd5 14. Nf1 Bd6 15. Ng3 Bxg3 16. hxg3 Rc8 17. Qd2 {½-½ Goktepe,D (1697)-Ye,L (1893) PNWCC Super G60 Mar Gp2 rapid 2021 (3)}) 12. Bb2 {[%emt 0:00:48]} cxd4 {[%emt 0:00:43]} 13. Bxd4 {[%emt 0:00:34]} bxa4 {[%emt 0:09:28]} 14. bxa4 {[%emt 0:05:00]} a5 {[%emt 0:03:05]} 15. Bb5 {[%emt 0:01:37]} Bb4 {[%emt 0:05:28]} 16. Nc4 {[%emt 0:00:21]} Qe7 {[%emt 0:02:41]} 17. Ne1 {[%emt 0:03:48]} Nc5 {[%emt 0:03:58]} 18. Rd1 {[%emt 0:06:15]} Nd5 {[%emt 0:13:16]} 19. Qb2 {[%emt 0:06:32]} Rfc8 {[%emt 0:05:44][%cal Oc5a4]} 20. Bxc5 {[%emt 0:16:33]} (20. Bxg7 f6 21. Bh6 Nxa4 22. Bxa4 Rxc4 $17) 20... Rxc5 {[%emt 0:00:28]} 21. Nd3 {[%emt 0:08:15] A dynamic duo of knights.} Rc7 {[%emt 0:06:53] White must now prevent ...Nc3.} 22. Rc1 {[%emt 0:00:00] Inhibits Nc3.} Qf6 $1 {[%emt 0:04:31]} 23. Nxb4 {[%emt 0:04:43]} axb4 {[%emt 0:00:20]} 24. Qxf6 {[%emt 0:11:17]} gxf6 {[%emt 0:00:01]} 25. Rb1 {[%emt 0:01:32]} Ba6 {[%emt 0:04:11]} 26. Nd2 {[%emt 0:00:09]} Bxb5 {[%emt 0:01:36]} 27. axb5 {[%emt 0:00:04][%cal Ba4b5,Bb5b6,Bb6b7][%mdl 32]} Ra4 {[%emt 0:02:41]} 28. Nb3 {[%emt 0:03:10]} Nc3 {[%emt 0:03:18]} 29. b6 {[%emt 0:00:04]} Rc6 {[%emt 0:03:42]} 30. b7 {[%emt 0:02:20]} Rb6 $1 {[%emt 0:00:01]} 31. Rb2 {[%emt 0:02:31]} Ra7 {[%emt 0:03:08]} (31... Rxb7 32. Nc5 Rb5 33. Nxa4 Nxa4 34. Ra2 $16) 32. Nc5 {[%emt 0:00:32] [#]} Ra5 $1 {[%emt 0:00:23][%mdl 64] Deflection} 33. Nd3 {[%emt 0:00:48] [#]} (33. Nb3 $17 Rd5 34. Ra1 (34. e4 $2 Nxe4 35. g3 Rxb7 $19) 34... Rxb7 35. g3) 33... Rab5 {[%emt 0:00:46]} ({Weaker is} 33... Rxb7 34. Rxb4 Rxb4 35. Nxb4 $11) (33... b3 $1 $19 {[%cal Oa5a2] And now ...Ra2! would win.} 34. Rc1 Na4) 34. Rc1 $15 {[%emt 0:00:28]} Rxb7 {[%emt 0:00:24] Threatens to win with ...Rd7.} 35. Kf1 {[%emt 0:00:24][%cal Ob2b4]} Nd5 $1 {[%emt 0:01:18]} 36. e4 {[%emt 0:00:24]} Nc3 {[%emt 0:01:06]} 37. f3 {[%emt 0:00:48][%cal Bf2f3,Bf3f4][%mdl 32]} Rd7 {[%emt 0:01:59]} ({Black should try} 37... Kg7 $15) 38. Nxb4 $11 {[%emt 0:04:00] The position is equal.} Na4 {[%emt 0:01:06]} 39. Rb3 {[%emt 0:00:06]} Rdb7 {[%emt 0:01:47]} 40. Rc8+ $1 {[%emt 0:00:00]} Kg7 {[%emt 0:00:00]} 41. f4 $1 {[%emt 0:00:16]} Rxb4 {[%emt 0:01:21]} 42. Rg3+ {[%emt 0:00:04]} Kh6 {[%emt 0:00:03]} 43. Rh3+ {[%emt 0:00:06]} Kg7 {[%emt 0:00:03]} 44. Rg3+ {[%emt 0:00:04]} Kh6 {[%emt 0:00:04]} 45. Rh3+ {[%emt 0:00:03]} Kg7 {[%emt 0:00:03] Weighted Error Value: White=0.09 (flawless) /Black=0.08 (flawless)} 1/2-1/2

[Event "WR Chess Masters 2023"]
[Site "Duesseldorf"]
[Date "2023.02.21"]
[Round "5.3"]
[White "Esipenko, Andrey"]
[Black "So, Wesley"]
[Result "1/2-1/2"]
[ECO "E53"]
[WhiteElo "2675"]
[BlackElo "2766"]
[Annotator "TA"]
[PlyCount "43"]
[EventDate "2023.02.16"]
[EventCountry "GER"]
[SourceTitle "playchess.com"]
[Source "ChessBase"]
[SourceQuality "1"]
[TimeControl "40/7200:20/3600:900+30"]

{[%evp 18,43,0,0,0,0,2,25,0,0,0,0,0,0,0,0,18,10,25,3,8,0,0,0,8,0,0,0]} 1. d4 {[%emt 0:00:06]} Nf6 {[%emt 0:01:03]} 2. c4 {[%emt 0:00:09]} e6 {[%emt 0:00:29]} 3. Nc3 {[%emt 0:00:22]} Bb4 {[%emt 0:00:50]} 4. e3 {[%emt 0:00:24]} O-O {[%emt 0:00:12]} 5. Bd3 {[%emt 0:00:09]} d5 {[%emt 0:00:07]} 6. a3 {[%emt 0:00:07]} Bxc3+ {[%emt 0:00:07]} 7. bxc3 {[%emt 0:00:06]} dxc4 {[%emt 0:03:39]} 8. Bxc4 {[%emt 0:00:07]} c5 {[%emt 0:00:04]} 9. Nf3 {[%emt 0:00:19]} Qc7 {[%emt 0:01:04]} 10. Be2 {[%emt 0:00:13]} b6 {[%emt 0:00:05] E53: Nimzo-Indian: Rubinstein: Main Line (4...0-0 5 Nf3 d5 6 Bd3 c5 7 0-0).} 11. Bb2 {[%emt 0:00:21]} Bb7 {[%emt 0:03:58]} 12. O-O {[%emt 0:00:31]} Nc6 {[%emt 0:00:05] White has an edge.} 13. c4 {[%emt 0:00:52]} Rfd8 $1 {[%emt 0:02:26][%mdl 4] 13...Rfd8 is the recent fashion.} 14. Rc1 {[%emt 0:04:26]} Na5 {[%emt 0:02:03]} 15. Nd2 {[%emt 0:06:13] [#]} Rac8 $146 {[%emt 0:19:46]} ({Predecessor:} 15... cxd4 16. exd4 Qf4 17. Re1 Nc6 18. Nf3 Rac8 19. Bd3 Na5 20. Ne5 Qg5 21. g3 Qh5 {1-0 Sciarretta,R (2239)-Pazderski,L (2121) SA-2011-0-00181}) 16. Re1 {[%emt 0:00:38]} h6 {[%emt 0:11:39]} 17. Bd3 {[%emt 0:04:11][%cal Od4d5]} Qe7 {[%emt 0:02:01]} (17... Ne8 {seems wilder.} 18. Qe2 Nd6 19. Qg4 f5) 18. Qe2 {[%emt 0:09:18]} Nc6 {[%emt 0:07:23][%cal Rc5d4] The position is equal.} 19. Nf3 {[%emt 0:18:22]} Na5 {[%emt 0:01:48]} 20. Nd2 {[%emt 0:18:44]} Nc6 {[%emt 0:00:10][%cal Rc5d4]} 21. Nf3 {[%emt 0:01:30]} Na5 {[%emt 0:01:40]} 22. Nd2 {[%emt 0:15:38] Not much happened in this game.   Weighted Error Value: White=0.03 (flawless) /Black=0.04 (flawless)} 1/2-1/2

[Event "WR Chess Masters 2023"]
[Site "Duesseldorf"]
[Date "2023.02.21"]
[Round "5.4"]
[White "Keymer, Vincent"]
[Black "Abdusattorov, Nodirbek"]
[Result "1-0"]
[ECO "E48"]
[WhiteElo "2690"]
[BlackElo "2734"]
[Annotator "TA"]
[PlyCount "103"]
[EventDate "2023.02.16"]
[EventCountry "GER"]
[SourceTitle "playchess.com"]
[Source "ChessBase"]
[SourceQuality "1"]
[TimeControl "40/7200:20/3600:900+30"]

{[%evp 14,103,-7,-6,45,47,47,45,45,49,46,50,45,54,47,41,36,36,39,37,53,39,43,34,48,24,29,0,0,0,0,0,0,-9,43,55,39,52,127,115,116,112,104,124,193,193,285,240,279,279,266,266,283,263,288,272,262,277,302,297,298,293,275,282,281,279,281,288,292,289,296,285,290,280,325,311,390,378,399,397,400,407,439,433,483,497,570,471,665,665,662,652]} 1. d4 {[%emt 0:00:03]} Nf6 {[%emt 0:00:24]} 2. c4 {[%emt 0:00:04]} e6 {[%emt 0:00:15]} 3. Nc3 {[%emt 0:00:04]} Bb4 {[%emt 0:00:13]} 4. e3 {[%emt 0:00:04]} O-O {[%emt 0:00:28]} 5. Bd3 {[%emt 0:00:04]} d5 {[%emt 0:02:21]} 6. cxd5 {[%emt 0:00:07]} exd5 {[%emt 0:00:23]} 7. Nge2 {[%emt 0:00:06]} Re8 {[%emt 0:05:04]} 8. O-O {[%emt 0:00:20]} Nbd7 {[%emt 0:03:05]} (8... b6 $11) 9. Qb3 $14 {[%emt 0:11:37][%csl LRb4,LRd5]} Bd6 {[%emt 0:10:32]} 10. Nxd5 {[%emt 0:13:40]} Nxd5 {[%emt 0:00:31] White is slightly better.} 11. Qxd5 {[%emt 0:00:04]} Nc5 {[%emt 0:00:54] Hoping for ...Bxh2+.} 12. Bxh7+ {[%emt 0:19:03][%mdl 64] Decoy} (12. dxc5 $2 {loses.} Bxh2+ 13. Kxh2 Qxd5 $19) (12. Bc4 Be6 13. Qf3 Bxc4 $17) 12... Kxh7 {[%emt 0:00:07]} 13. Qh5+ {[%emt 0:00:02]} (13. dxc5 $2 {is the wrong capture.} Bxh2+ 14. Kxh2 Qxd5 $19) 13... Kg8 {[%emt 0:00:09] White must now prevent ...g6.} 14. dxc5 {[%emt 0:00:04]} Re5 {[%emt 0:00:11]} 15. Qf3 {[%emt 0:00:06]} Rxc5 {[%emt 0:00:05][%cal Od6h2]} 16. Ng3 {[%emt 0:05:42]} Bd7 {[%emt 0:05:06]} 17. e4 {[%emt 0:06:52]} Qh4 {[%emt 0:01:01]} 18. Bd2 {[%emt 0:11:43]} Rb5 {[%emt 0:16:25] Dodges Bb4} 19. Bc3 {[%emt 0:04:53][%cal Oe4e5]} Re8 {[%emt 0:01:18]} 20. Rae1 {[%emt 0:12:17][%cal Oe4e5]} (20. h3 {simplifies} Rg5 21. Nf5 Qxe4 22. Qxe4 Rxe4 23. Nxd6 cxd6 24. f3) 20... Rg5 {[%emt 0:14:58]} 21. e5 {[%emt 0:02:23][%mdl 64] Discovered Attack} Bc6 $1 {[%emt 0:00:54]} 22. Qd3 {[%emt 0:05:12]} Bc5 {[%emt 0:05:19]} ({Don't do} 22... Bxe5 23. f4 Bxc3 24. Rxe8+ Bxe8 25. fxg5 Qd4+ 26. Qxd4 Bxd4+ 27. Kh1 $16) 23. b4 {[%emt 0:03:59][%cal Bb2b4,Bb4b5][%mdl 32]} Bb6 {[%emt 0:06:07] This pair of bishops is nice.} (23... Bxb4 $11 24. Bxb4 Qxb4) 24. b5 $36 {[%emt 0:07:53][%mdl 2048] White has good play.} Re6 {[%emt 0:00:06][%cal Oe6h6] ( -> ...Rh6!)} 25. Ne4 {[%emt 0:00:34] Chess con chili.} Rxg2+ {[%emt 0:09:29] White stays focused until the end.} 26. Kxg2 $16 {[%emt 0:00:01]} Rg6+ {[%emt 0:00:48]} 27. Kh1 {[%emt 0:00:07]} Rh6 {[%emt 0:00:54][%csl Gh6][%cal Rh4h2]} 28. h3 {[%emt 0:00:06]} (28. bxc6 $2 Qxh2#) 28... Bxb5 {[%emt 0:01:05] [#]} 29. Qf3 $1 $18 {[%emt 0:00:22]} Bd7 {[%emt 0:10:15] [#]} (29... Bxf1 $142 30. Rxf1 Qxh3+ 31. Qxh3 Rxh3+ 32. Kg2 Rd3) (29... Qxh3+ 30. Qxh3) 30. e6 $1 {[%emt 0:00:08]} Bxe6 {[%emt 0:06:36] [#]} 31. Rg1 $1 {[%emt 0:00:04]} Qxh3+ {[%emt 0:01:03]} 32. Qxh3 {[%emt 0:00:04]} Rxh3+ {[%emt 0:00:07]} 33. Kg2 {[%emt 0:00:03]} Rh5 {[%emt 0:02:30]} 34. Kf3 {[%emt 0:01:10] Threatens to win with Nf6+.} Rf5+ {[%emt 0:01:42]} 35. Ke2 {[%emt 0:00:10]} g6 {[%emt 0:00:05]} 36. Rh1 {[%emt 0:02:00][%csl Gc3][%cal Rh1h8] Repels Kf8} Kf8 {[%emt 0:00:12]} 37. Bf6 {[%emt 0:01:14][%cal Rh1h8]} Ke8 {[%emt 0:00:20]} 38. Rh8+ {[%emt 0:01:19]} Kd7 {[%emt 0:00:01]} 39. Rd8+ {[%emt 0:00:52]} Kc6 {[%emt 0:00:01]} 40. Bd4 {[%emt 0:00:00]} Bxd4 {[%emt 0:00:00]} 41. Rxd4 {[%emt 0:01:19] And now Rc1+ would win.} b6 {[%emt 0:07:07]} 42. a3 {[%emt 0:03:44]} Kb7 {[%emt 0:00:57]} 43. Rc1 {[%emt 0:01:04]} Rh5 {[%emt 0:02:22]} 44. Ke3 {[%emt 0:04:23]} a5 {[%emt 0:01:13]} 45. f3 {[%emt 0:02:12]} Rb5 {[%emt 0:02:13]} 46. Rc3 {[%emt 0:00:34]} Rh5 {[%emt 0:02:45]} 47. Rd1 {[%emt 0:02:27]} a4 {[%emt 0:00:32]} 48. Rd4 {[%emt 0:00:51] White is clearly winning.} Ra5 {[%emt 0:00:28]} 49. Rb4 {[%emt 0:00:46]} Re5 {[%emt 0:05:32]} 50. Kf2 {[%emt 0:00:34]} c6 {[%emt 0:00:48]} (50... Kb8 $142 51. Nc5 Bc8 52. Nxa4 Re6) 51. Nc5+ {[%emt 0:00:21]} Kc7 {[%emt 0:00:05]} 52. Nxe6+ {[%emt 0:00:06] A cool game by Keymer.   Weighted Error Value: White=0.05 (flawless) /Black=0.24 (precise)} 1-0

[Event "WR Chess Masters 2023"]
[Site "Duesseldorf"]
[Date "2023.02.21"]
[Round "5.5"]
[White "Praggnanandhaa R"]
[Black "Duda, Jan-Krzysztof"]
[Result "1/2-1/2"]
[ECO "C42"]
[WhiteElo "2690"]
[BlackElo "2729"]
[Annotator "TA"]
[PlyCount "67"]
[EventDate "2023.02.16"]
[EventCountry "GER"]
[SourceTitle "playchess.com"]
[Source "ChessBase"]
[SourceQuality "1"]
[TimeControl "40/7200:20/3600:900+30"]

{[%evp 10,67,37,28,35,33,50,18,20,20,17,16,13,13,18,20,23,15,14,10,25,9,52,50,60,60,60,60,67,64,67,57,57,57,57,57,60,60,68,60,71,60,67,58,71,70,85,83,97,6,12,0,0,0,2,0,2,0,2,0]} 1. e4 {[%emt 0:00:25]} e5 {[%emt 0:00:06]} 2. Nf3 {[%emt 0:00:08]} Nf6 {[%emt 0:00:07]} 3. Nxe5 {[%emt 0:00:17]} d6 {[%emt 0:00:05]} 4. Nf3 {[%emt 0:00:05]} Nxe4 {[%emt 0:00:05]} 5. d4 {[%emt 0:00:03]} d5 {[%emt 0:00:07]} 6. Bd3 {[%emt 0:00:07]} Bf5 {[%emt 0:00:20] 6...Bd6 is becoming the main line. C42: Petroff Defence: 3 Nxe5 and unusual White 3rd moves.} 7. O-O {[%emt 0:00:20]} Be7 {[%emt 0:00:05]} 8. Nc3 {[%emt 0:00:21]} O-O {[%emt 0:01:01]} 9. Ne5 {[%emt 0:00:13] Strongly threatening Qf3.} Nxc3 {[%emt 0:00:40]} 10. bxc3 {[%emt 0:00:09]} Bxd3 {[%emt 0:00:06]} 11. cxd3 {[%emt 0:00:15]} Nd7 {[%emt 0:00:26]} 12. Qb3 {[%emt 0:00:28]} Nxe5 {[%emt 0:00:43]} 13. dxe5 {[%emt 0:00:07]} Qd7 {[%emt 0:00:21]} 14. d4 {[%emt 0:04:40]} b6 {[%emt 0:09:03]} 15. f4 {[%emt 0:01:28] [#]} f5 $146 {[%emt 0:02:04]} ({Predecessor:} 15... f6 16. Ba3 Bxa3 17. Qxa3 fxe5 18. fxe5 a5 19. h3 Qe6 20. Qb2 Rxf1+ 21. Rxf1 Rf8 22. Rxf8+ Kxf8 {1-0 Saric,I (2681)-Rakhmanov,A (2615) TUR-chT Konya 2019 (9.5)}) 16. a4 {[%emt 0:01:56]} Qe6 {[%emt 0:01:54]} 17. Ba3 {[%emt 0:09:44] Black must now prevent Bxe7.} Bxa3 {[%emt 0:00:25]} 18. Rxa3 {[%emt 0:00:55][%cal Ba1a3,Ba3a2,Ba2c2,Bc2c4][%mdl 32]} c6 {[%emt 0:01:34]} 19. Ra2 {[%emt 0:04:24]} Rfd8 {[%emt 0:07:18]} 20. h3 {[%emt 0:05:07]} Rd7 {[%emt 0:04:13]} 21. Rb1 {[%emt 0:06:27]} Rad8 {[%emt 0:01:14]} 22. Qd1 {[%emt 0:02:41]} Kf8 {[%emt 0:02:19]} 23. Kh2 {[%emt 0:02:29]} Ke8 {[%emt 0:00:57]} 24. Rc2 {[%emt 0:02:39]} Rc8 {[%emt 0:02:12]} 25. Rbc1 {[%emt 0:09:04]} g6 {[%emt 0:01:01]} 26. Qf3 {[%emt 0:17:02]} Kd8 {[%emt 0:02:58]} 27. c4 {[%emt 0:03:58]} dxc4 {[%emt 0:01:19]} 28. Rxc4 {[%emt 0:00:13]} Rd5 {[%emt 0:00:13] [#]} 29. g4 {[%emt 0:07:25]} (29. a5 $1 $16 {[%cal Ra5b6]}) 29... Rc7 $11 {[%emt 0:03:15] The position is equal.} 30. gxf5 {[%emt 0:09:48]} gxf5 {[%emt 0:04:39]} 31. Qc3 {[%emt 0:03:13]} Qh6 {[%emt 0:03:23]} 32. Qf3 {[%emt 0:03:20][%cal Oc4c6] aiming for Rxc6!} Qe6 {[%emt 0:00:26]} 33. Qc3 {[%emt 0:00:35]} Qh6 {[%emt 0:00:30]} 34. Qf3 {[%emt 0:00:29] Weighted Error Value: White=0.10 (very precise) /Black=0.05 (flawless)} 1/2-1/2

[Event "WR Chess Masters 2023"]
[Site "Duesseldorf"]
[Date "2023.02.22"]
[Round "6.1"]
[White "So, Wesley"]
[Black "Aronian, Levon"]
[Result "1/2-1/2"]
[ECO "E48"]
[WhiteElo "2766"]
[BlackElo "2736"]
[Annotator "TA"]
[PlyCount "69"]
[EventDate "2023.02.16"]
[EventCountry "GER"]
[SourceTitle "playchess.com"]
[Source "ChessBase"]
[SourceQuality "1"]
[TimeControl "40/7200:20/3600:900+30"]

{[%evp 16,69,22,16,43,28,37,29,23,21,16,0,0,0,0,11,20,-25,-9,-24,-9,-60,-57,-116,-8,-13,-15,0,0,-25,308,-25,-27,-23,-23,-23,-23,-35,-27,-141,-105,-94,-82,-82,-87,-69,-84,-114,0,0,0,0,0,0,0,0]} 1. d4 {[%emt 0:00:26]} Nf6 {[%emt 0:00:06]} 2. c4 {[%emt 0:00:39]} e6 {[%emt 0:00:06]} 3. Nc3 {[%emt 0:00:16]} Bb4 {[%emt 0:00:06]} 4. e3 {[%emt 0:00:23]} O-O {[%emt 0:00:07]} 5. Bd3 {[%emt 0:00:36]} c5 {[%emt 0:00:07]} 6. Nge2 {[%emt 0:01:29]} Nc6 {[%emt 0:00:12]} 7. O-O {[%emt 0:01:48]} d5 {[%emt 0:00:15]} 8. cxd5 {[%emt 0:00:56]} exd5 {[%emt 0:02:11]} 9. a3 {[%emt 0:00:05]} c4 {[%emt 0:00:06] E48: Nimzo-Indian: Rubinstein: 5 Bd3 d5 including 6 Ne2, but excluding 6 a3.} 10. Bxh7+ {[%emt 0:02:05] [#]} Nxh7 $146 {[%emt 0:00:09]} ({Predecessor:} 10... Kxh7 11. axb4 Nxb4 12. f3 Re8 13. e4 dxe4 14. Bg5 Qb6 15. Bxf6 Qxf6 16. fxe4 Qe7 17. Nf4 Kg8 18. Qh5 Be6 19. Ra5 Nd3 20. Rg5 Rad8 21. Nxd3 cxd3 22. d5 Bc8 23. e5 {1-0 Georgiev,V (2559)-Neimer,V (2420) Chicago op 22nd 2013 (5)}) 11. axb4 {[%emt 0:00:04]} Nxb4 {[%emt 0:00:04] White has an edge.} 12. b3 {[%emt 0:00:05] Hoping for bxc4.} a5 {[%emt 0:00:03]} 13. bxc4 {[%emt 0:07:52]} dxc4 {[%emt 0:02:00]} 14. Rb1 {[%emt 0:03:15]} Ra6 {[%emt 0:02:41]} 15. e4 {[%emt 0:03:24]} Re8 {[%emt 0:13:35]} 16. d5 {[%emt 0:14:02]} (16. Qd2 $5 {[%cal Rf2f3]}) 16... Bd7 {[%emt 0:00:21]} 17. Qd2 {[%emt 0:15:20]} b5 {[%emt 0:10:22] next ...Nf6 is good for Black.} 18. Ba3 {[%emt 0:10:26]} ({White should play} 18. Qd4 $11) 18... Nf6 $15 {[%emt 0:01:27] aiming for ...Nd3.} (18... Ng5 {keeps more tension.} 19. f3 f5 20. Ng3 fxe4 21. fxe4 Rf6) 19. Ng3 {[%emt 0:18:03]} (19. f3 $1 $15 Qb6+ 20. Kh1) 19... Ng4 {[%emt 0:01:44]} ({Better is} 19... Nd3 $17 {...b4 is the strong threat.} 20. Nxb5 Nxe4 21. Nxe4 Rxe4) 20. Bxb4 $11 {[%emt 0:03:24]} axb4 {[%emt 0:00:06]} 21. Rxb4 {[%emt 0:00:01]} Nxh2 {[%emt 0:32:53][%mdl 64] Decoy} 22. Kxh2 {[%emt 0:00:03]} Qh4+ {[%emt 0:00:36]} 23. Kg1 {[%emt 0:00:02]} Rh6 $40 {[%emt 0:00:09][%csl Gh6][%cal Rh4h2][%mdl 128] White needs to defend precisely.} 24. Rfb1 {[%emt 0:12:01] Black must now prevent Qe3.} (24. Nxb5 $2 Qh2#) 24... Bg4 {[%emt 0:00:09] ( -> ...Qh2+)} 25. Qxh6 $1 {[%emt 0:00:13]} Qxh6 {[%emt 0:00:47]} 26. Nxb5 {[%emt 0:00:29]} Rc8 {[%emt 0:05:10] Strongly threatening ...c3.} 27. R4b2 {[%emt 0:02:05]} (27. e5 $11) 27... Rb8 {[%emt 0:07:36][%mdl 1024] Black has strong compensation.} 28. Nf1 {[%emt 0:01:49]} Rb6 {[%emt 0:02:44]} 29. Ne3 {[%emt 0:04:40] [#]} Qh5 {[%emt 0:09:59]} 30. d6 {[%emt 0:02:22]} (30. Nxc4 $2 {is the wrong capture.} Rh6 31. f3 Bxf3 $19) ({Avoid the trap} 30. f3 $2 Bxf3 31. gxf3 Qxf3 $19) 30... Bd7 {[%emt 0:05:14][%cal Rb6b5]} 31. Nd5 {[%emt 0:00:12] [#]} Rxb5 {[%emt 0:04:57]} (31... Ra6 $1 $17 32. Ndc7 Ra5) 32. Rxb5 {[%emt 0:00:04] The position is equal.} Bxb5 {[%emt 0:00:06]} 33. Rxb5 {[%emt 0:00:04] White wants to mate with Ne7+.} Qd1+ {[%emt 0:00:04]} 34. Kh2 {[%emt 0:00:02]} Qh5+ {[%emt 0:00:07]} 35. Kg1 {[%emt 0:00:03] An exciting game.   Weighted Error Value: White=0.18 (very precise) /Black=0.37} 1/2-1/2